bitfinex-derivatives/quotes_SOLF0:USTF0_20241120
["timestamp","ask_amount","ask_price","bid_price","bid_amount"]
[1732062555622,2.1164,235.88,235.79,12.48280769]
[1732062556326,2.1165,235.87,235.82,2.1169]
[1732062556528,25.16280769,235.93,235.79,2.14]
[1732062556731,6.62205078,235.87,235.8,6.62205078]
[1732062557132,2.1166,235.86,235.82,2.1169]
[1732062557436,6.62205078,235.87,235.78,6.62205078]
[1732062557626,6.62205078,235.85,235.78,6.62205078]
[1732062558230,2.1168,235.84,235.8,2.1171]
[1732062558435,2.1168,235.84,235.78,6.62205078]
[1732062558732,2.1168,235.84,235.77,2.1174]
[1732062558928,2.1168,235.84,235.74,12.48866522]
[1732062559134,2.14,235.88,235.74,12.48866522]
[1732062559332,2.1168,235.83,235.74,12.48866522]
[1732062559826,14.82,235.88,235.74,12.48866522]
[1732062560229,2.1169,235.83,235.76,2.1174]
[1732062560431,2.1169,235.83,235.74,12.48866522]
[1732062561224,14.82,235.88,235.74,12.48866522]
[1732062561429,2.1167,235.85,235.77,10.34866522]
[1732062562831,2.1166,235.86,235.8,2.1171]
[1732062563133,14.82,235.88,235.8,2.1171]
[1732062564233,2.1167,235.85,235.8,2.1171]
[1732062565734,4.2564,235.89,235.8,10.34866522]
[1732062566131,12.68,235.93,235.83,10.34866522]
[1732062566328,2.14,235.93,235.83,10.34866522]
[1732062566531,39.04904703,235.96,235.83,10.34866522]
[1732062566732,2.1159,235.94,235.89,2.1163]
[1732062567636,8.89478127,235.95,235.83,10.34866522]
[1732062567835,2.1161,235.92,235.87,2.1164]
[1732062568033,8.89478127,235.94,235.83,10.34866522]
[1732062568338,8.89478127,235.94,235.8,3.7478]
[1732062568339,2.1162,235.9,235.85,2.1166]
[1732062569439,2.1163,235.89,235.8,16.23646522]
[1732062569839,2.14,235.91,235.83,2.1168]
[1732062570134,4.22742619,235.91,235.8,4.7076]
[1732062570641,8.89514479,235.9,235.8,4.7076]
[1732062570838,8.89514479,235.9,235.8,3.4384]
[1732062571041,8.89514479,235.9,235.77,10.34866522]
[1732062571339,2.1165,235.87,235.82,2.1169]
[1732062571635,23.02866522,235.89,235.73,2.5196]
[1732062571941,2.1167,235.85,235.74,10.34866522]
[1732062572530,2.1167,235.85,235.79,2.1172]
[1732062574843,2.1167,235.85,235.74,10.34866522]
[1732062574844,2.1167,235.85,235.8,2.1171]
[1732062575933,2.1167,235.85,235.79,2.1172]
[1732062577243,2.1167,235.85,235.79,2.1171]
[1732062577743,2.1167,235.85,235.8,2.1171]
[1732062578455,2.1167,235.85,235.79,2.1172]
[1732062578641,8.73999626,235.85,235.79,2.1172]
[1732062579234,8.73999626,235.85,235.8,2.1171]
[1732062581438,6.62329626,235.85,235.78,6.62329626]
[1732062581637,2.1168,235.84,235.79,2.1172]
[1732062581940,6.62329626,235.85,235.79,2.1172]
[1732062582343,8.73999626,235.85,235.8,2.1171]
[1732062588949,6.62329626,235.85,235.81,2.117]
[1732062589647,6.62329626,235.85,235.82,2.1169]
[1732062591038,6.62329626,235.86,235.82,2.1169]
[1732062591646,6.62329626,235.86,235.78,6.62329626]
[1732062592247,6.62329626,235.86,235.75,2.14]
[1732062592446,6.62329626,235.86,235.78,6.62329626]
[1732062593350,14.82,235.89,235.76,6.62329626]
[1732062593351,6.62329626,235.84,235.76,6.62329626]
[1732062594044,6.62329626,235.84,235.75,2.14]
[1732062594244,6.62329626,235.84,235.77,6.62329626]
[1732062594650,6.62329626,235.84,235.79,2.1172]
[1732062594847,6.62329626,235.84,235.77,6.62329626]
[1732062595053,6.62329626,235.84,235.8,2.117]
[1732062595348,6.62329626,235.84,235.75,6.62329626]
[1732062595745,8.74009626,235.84,235.75,6.62329626]
[1732062595946,6.62329626,235.84,235.73,2.5196]
[1732062596150,6.62329626,235.84,235.74,6.62329626]
[1732062596351,8.74009626,235.84,235.78,2.1173]
[1732062599656,2.1168,235.84,235.77,6.62329626]
[1732062599856,2.1168,235.84,235.79,2.1172]
[1732062600256,2.1165,235.87,235.81,2.1169]
[1732062600647,2.1165,235.87,235.8,6.62329626]
[1732062600848,8.93013867,235.88,235.78,6.62329626]
[1732062601052,2.1167,235.85,235.78,6.62329626]
[1732062601849,6.62329626,235.87,235.81,2.117]
[1732062602157,8.93359802,235.86,235.81,2.117]
[1732062603257,2.1167,235.85,235.81,2.117]
[1732062603456,8.93359802,235.84,235.81,2.117]
[1732062603658,2.1167,235.85,235.81,2.117]
[1732062603857,8.93543956,235.84,235.81,2.117]
[1732062604160,2.1167,235.85,235.81,2.117]
[1732062604459,2.1168,235.84,235.81,2.117]
[1732062604756,6.62329626,235.87,235.73,2.5196]
[1732062604954,8.93553938,235.86,235.74,6.62329626]
[1732062605356,6.62329626,235.84,235.74,6.62329626]
[1732062605557,6.62329626,235.81,235.71,6.62329626]
[1732062606258,2.1174,235.78,235.71,2.1178]
[1732062606459,6.62329626,235.79,235.71,2.1178]
[1732062606958,6.62329626,235.77,235.69,2.1181]
[1732062607159,12.68,235.79,235.71,6.62329626]
[1732062607160,8.76329626,235.78,235.71,6.62329626]
[1732062607557,8.76329626,235.78,235.7,2.118]
[1732062607856,8.76329626,235.78,235.69,6.62329626]
[1732062608557,6.62329626,235.76,235.69,6.62329626]
[1732062608855,2.1176,235.75,235.64,3.6857]
[1732062609056,2.1176,235.75,235.68,6.62329626]
[1732062609261,6.62329626,235.76,235.68,6.62329626]
[1732062609464,8.74079626,235.76,235.69,2.1181]
[1732062609760,6.62329626,235.76,235.69,2.1181]
[1732062610157,2.1177,235.74,235.69,2.1181]
[1732062610460,8.74099626,235.74,235.69,2.1181]
[1732062613262,8.74099626,235.74,235.64,3.6857]
[1732062613457,6.62329626,235.74,235.66,6.62329626]
[1732062613854,6.62329626,235.74,235.7,2.1179]
[1732062614062,6.62329626,235.76,235.68,6.62329626]
[1732062614260,6.62329626,235.76,235.7,6.62329626]
[1732062614759,6.62329626,235.76,235.71,2.1179]
[1732062615154,2.14,235.78,235.68,6.62329626]
[1732062615353,8.76329626,235.78,235.7,6.62329626]
[1732062615756,6.62329626,235.78,235.7,6.62329626]
[1732062616360,6.62329626,235.78,235.75,2.1175]
[1732062616655,6.62329626,235.83,235.76,6.62329626]
[1732062617065,2.14,235.84,235.78,6.62329626]
[1732062617265,8.90519507,235.83,235.78,6.62329626]
[1732062617562,8.76329626,235.85,235.78,6.62329626]
[1732062617765,8.90528476,235.84,235.78,6.62329626]
[1732062618365,6.62329626,235.83,235.7,2.14]
[1732062618569,6.62329626,235.83,235.76,6.62329626]
[1732062619465,6.62329626,235.83,235.79,2.1171]
[1732062621168,6.62329626,235.83,235.76,6.62329626]
[1732062621358,6.62329626,235.77,235.68,2.14]
[1732062621560,6.62329626,235.77,235.7,6.62329626]
[1732062622361,6.62329626,235.75,235.68,8.76329626]
[1732062622669,6.62329626,235.73,235.64,3.6857]
[1732062622863,6.62329626,235.73,235.66,6.62329626]
[1732062623061,14.82,235.8,235.66,6.62329626]
[1732062623261,6.62329626,235.74,235.66,6.62329626]
[1732062623466,6.62329626,235.74,235.7,2.118]
[1732062623964,6.62329626,235.75,235.71,2.1179]
[1732062624165,12.68,235.8,235.68,6.62329626]
[1732062624366,6.62329626,235.77,235.7,6.62329626]
[1732062624560,2.14,235.8,235.74,2.1176]
[1732062624758,6.62329626,235.79,235.74,2.1176]
[1732062625064,8.74049626,235.79,235.73,2.1177]
[1732062625367,6.62329626,235.77,235.73,2.1177]
[1732062626369,4.257,235.81,235.75,2.1175]
[1732062626566,6.62329626,235.8,235.75,2.1175]
[1732062626767,6.62329626,235.8,235.72,6.62329626]
[1732062630469,6.62329626,235.78,235.73,2.1177]
[1732062630670,6.62329626,235.78,235.71,6.62329626]
[1732062631067,6.62329626,235.78,235.73,2.1177]
[1732062631365,6.62329626,235.78,235.71,6.62329626]
[1732062631770,6.62329626,235.78,235.74,2.1176]
[1732062632665,8.74059626,235.78,235.72,2.1178]
[1732062632974,6.62329626,235.78,235.72,2.1178]
[1732062633374,6.62329626,235.76,235.72,2.1178]
[1732062633674,6.62329626,235.76,235.71,2.1179]
[1732062634065,8.74079626,235.76,235.71,2.1179]
[1732062634269,6.62329626,235.74,235.66,6.62329626]
[1732062634674,6.62329626,235.74,235.69,2.118]
[1732062634675,8.74099626,235.74,235.69,2.118]
[1732062634875,6.62329626,235.74,235.69,2.118]
[1732062638173,6.62329626,235.65,235.59,6.62329626]
[1732062639671,6.62329626,235.65,235.54,5.7442]
[1732062639978,6.62329626,235.65,235.59,6.62329626]
[1732062641183,6.62329626,235.65,235.54,5.7442]
[1732062643276,6.62329626,235.65,235.6,2.1188]
[1732062644485,1.1765,235.72,235.61,6.62329626]
[1732062644677,6.62329626,235.69,235.63,6.62329626]
[1732062645084,6.62329626,235.67,235.61,6.62329626]
[1732062646286,6.62329626,235.67,235.53,15.05157203]
[1732062646485,6.62329626,235.67,235.59,6.62329626]
[1732062646784,6.62329626,235.66,235.55,1.3009]
[1732062646994,6.62329626,235.66,235.59,6.62329626]
[1732062647282,8.74169626,235.66,235.59,2.1189]
[1732062647482,2.14,235.69,235.6,6.62329626]
[1732062647890,6.62329626,235.67,235.6,6.62329626]
[1732062648382,6.62329626,235.67,235.64,2.1185]
[1732062649390,6.62329626,235.65,235.62,2.1187]
[1732062649584,6.62329626,235.65,235.58,6.62329626]
[1732062649996,6.62329626,235.65,235.61,2.1187]
[1732062650187,6.62329626,235.67,235.6,6.62329626]
[1732062651084,6.62329626,235.67,235.62,2.1186]
[1732062651282,6.62329626,235.65,235.56,2.14]
[1732062651488,6.62329626,235.65,235.58,6.62329626]
[1732062651790,6.62329626,235.65,235.62,2.1187]
[1732062652281,6.62329626,235.66,235.62,2.1187]
[1732062653088,6.62329626,235.66,235.59,6.62329626]
[1732062653490,6.62329626,235.68,235.61,6.62329626]
[1732062653991,2.14,235.69,235.63,6.62329626]
[1732062655496,6.62329626,235.68,235.63,6.62329626]
[1732062655697,6.62329626,235.68,235.65,2.1184]
[1732062656502,13.9018,235.75,235.67,6.62329626]
[1732062656794,15.49986173,235.74,235.67,6.62329626]
[1732062656995,6.62329626,235.74,235.69,2.118]
[1732062657188,6.62329626,235.74,235.67,6.62329626]
[1732062657792,6.62329626,235.74,235.71,2.1179]
[1732062658702,8.76329626,235.76,235.69,6.62329626]
[1732062659000,2.14,235.76,235.69,6.62329626]
[1732062659196,6.62329626,235.77,235.74,2.1176]
[1732062659799,0.22593,235.79,235.76,2.1175]
[1732062659999,6.84922626,235.79,235.76,2.1175]
[1732062661001,6.62329626,235.77,235.74,2.1176]
[1732062661201,6.62329626,235.77,235.69,6.62329626]
[1732062661403,6.62329626,235.77,235.67,2.14]
[1732062661404,6.62329626,235.77,235.71,6.62329626]
[1732062661706,6.62329626,235.77,235.76,2.1175]
[1732062662499,6.62329626,235.77,235.75,2.1175]
[1732062662697,6.62329626,235.77,235.69,6.62329626]
[1732062662896,6.62329626,235.75,235.71,2.1179]
[1732062663097,6.62329626,235.75,235.64,1.1974]
[1732062663098,6.62329626,235.75,235.66,6.62329626]
[1732062663294,6.62329626,235.75,235.68,6.62329626]
[1732062663496,0.22593,235.79,235.7,6.62329626]
[1732062663696,6.62329626,235.78,235.7,6.62329626]
[1732062663904,0.22593,235.79,235.72,6.62329626]
[1732062664306,6.62329626,235.78,235.72,6.62329626]
[1732062664501,0.22593,235.79,235.69,2.14]
[1732062664708,0.22593,235.79,235.76,2.1174]
[1732062665104,0.22593,235.79,235.74,6.62329626]
[1732062665398,0.22593,235.79,235.76,6.62329626]
[1732062665802,0.22593,235.79,235.77,2.1174]
[1732062665996,0.22593,235.79,235.76,6.62329626]
[1732062666397,0.22593,235.79,235.78,2.1173]
[1732062666601,0.22593,235.79,235.78,8.74059626]
[1732062667201,8.89120676,235.88,235.78,6.62329626]
[1732062667400,8.89120676,235.88,235.85,6.62329626]
[1732062667602,6.62329626,235.91,235.85,6.62329626]
[1732062667999,6.62329626,235.86,235.76,2.4183]
[1732062668305,2.2,235.92,235.8,6.62329626]
[1732062668503,6.62329626,235.87,235.8,6.62329626]
[1732062669205,6.62329626,235.85,235.78,6.62329626]
[1732062669397,6.62329626,235.83,235.76,2.4183]
[1732062669599,6.62329626,235.79,235.69,2.2]
[1732062669796,6.62329626,235.79,235.72,6.62329626]
[1732062670198,6.62329626,235.79,235.75,2.1175]
[1732062671401,2.2,235.83,235.76,6.62329626]
[1732062671602,8.82329626,235.86,235.8,6.62329626]
[1732062671801,8.88720324,235.85,235.82,6.62329626]
[1732062672213,6.62329626,235.88,235.82,6.62329626]
[1732062672403,8.88571,235.87,235.82,6.62329626]
[1732062672604,8.88571,235.87,235.83,2.1168]
[1732062672804,8.88571,235.86,235.77,2.4662]
[1732062673105,2.2,235.9,235.86,2.1166]
[1732062673306,8.88374838,235.89,235.86,2.1166]
[1732062673804,6.62329626,235.93,235.86,2.1166]
[1732062674009,8.88453157,235.92,235.87,6.62329626]
[1732062674607,8.88453157,235.92,235.86,10.33918257]
[1732062674902,0.18873,235.91,235.9,2.1162]
[1732062675304,0.18873,235.91,235.89,10.33918257]
[1732062675305,2.2,235.98,235.89,10.33918257]
[1732062675505,8.87458016,235.97,235.92,2.116]
[1732062675811,8.87458016,235.97,235.89,10.33918257]
[1732062676011,31.74560742,236.01,235.89,10.33918257]
[1732062676210,8.87532364,236.0,235.89,10.33918257]
[1732062676404,8.87532364,236.0,235.88,3.8037]
[1732062676405,8.87532364,236.0,235.92,10.33918257]
[1732062676605,8.87532364,236.0,235.96,2.1157]
[1732062677211,2.2,236.03,235.96,2.1157]
[1732062677709,2.1151,236.02,235.94,2.1158]
[1732062678109,10.97574817,236.02,235.94,2.1158]
[1732062678310,10.97574817,236.02,235.95,2.1158]
[1732062678510,8.86064817,236.02,235.95,2.1158]
[1732062679310,2.2,236.03,235.95,2.1158]
[1732062679707,2.2,236.03,235.9,10.33918257]
[1732062680108,8.84650564,236.02,235.9,10.33918257]
[1732062680412,2.1151,236.02,235.9,10.33918257]
[1732062680815,2.1151,236.02,235.93,10.33918257]
[1732062681211,2.1151,236.02,235.95,2.1158]
[1732062682213,2.1152,236.01,235.9,10.33918257]
[1732062682516,2.2,236.03,235.9,10.33918257]
[1732062683314,4.3151,236.03,235.95,2.1157]
[1732062684019,2.1151,236.02,235.95,2.1157]
[1732062684216,2.1151,236.02,235.9,10.33918257]
[1732062685222,2.1152,236.01,235.9,10.33918257]
[1732062685416,2.2,236.03,235.9,10.33918257]
[1732062685619,2.1151,236.02,235.95,2.1157]
[1732062686823,2.1154,236.0,235.9,12.53918257]
[1732062687023,10.33918257,236.01,235.88,3.8037]
[1732062687228,10.33918257,235.98,235.88,3.8037]
[1732062687417,2.2,235.97,235.88,3.8037]
[1732062687822,2.1159,235.94,235.88,1.2254]
[1732062688018,10.33918257,235.95,235.87,2.1164]
[1732062688516,10.33918257,235.95,235.86,2.1165]
[1732062688517,2.1161,235.92,235.86,2.1165]
[1732062688820,10.33918257,235.95,235.83,2.2]
[1732062689020,2.1159,235.93,235.87,2.1165]
[1732062689416,2.1159,235.93,235.81,12.53918257]
[1732062689613,12.53918257,235.97,235.84,10.33918257]
[1732062689827,232.5442227,236.04,235.9,10.33918257]
[1732062690020,12.68,236.14,235.9,10.33918257]
[1732062690021,12.53918257,236.05,235.9,10.33918257]
[1732062690322,2.1152,236.01,235.9,10.33918257]
[1732062690517,8.81187094,236.04,235.9,10.33918257]
[1732062690915,2.1153,236.0,235.95,2.1157]
[1732062691121,8.81187094,236.04,235.9,10.33918257]
[1732062691622,8.81187094,236.04,235.97,10.33918257]
[1732062691821,174.408167,236.08,235.97,10.33918257]
[1732062692120,2.16144786,236.11,236.01,2.1152]
[1732062692121,2.1148,236.06,236.01,2.1152]
[1732062692517,174.408167,236.12,235.97,10.33918257]
[1732062692718,174.408167,236.12,236.02,2.1151]
[1732062692719,2.1147,236.08,236.02,2.1151]
[1732062694028,186.94734957,236.13,235.97,10.33918257]
[1732062694320,10.33918257,236.04,235.93,3.7697]
[1732062694626,10.33918257,236.01,235.88,10.33918257]
[1732062694828,2.1154,235.99,235.94,2.1158]
[1732062695222,2.1154,235.99,235.88,10.33918257]
[1732062695918,2.1154,235.99,235.94,2.1158]
[1732062696128,2.2,236.0,235.88,10.33918257]
[1732062696323,4.4152,236.02,235.91,10.33918257]
[1732062696824,2.3,236.02,235.91,10.33918257]
[1732062697123,2.3,236.02,235.92,2.3]
[1732062697327,2.3,236.02,235.92,3.5599]
[1732062697519,2.3,236.02,235.97,2.1156]
[1732062697922,2.3,236.02,235.92,3.5599]
[1732062698222,2.3,236.02,235.94,2.1158]
[1732062698622,10.33918257,236.01,235.92,2.116]
[1732062698822,174.408167,235.99,235.86,2.4696]
[1732062699225,2.1158,235.95,235.86,2.4696]
[1732062699425,174.408167,236.0,235.9,2.1161]
[1732062699819,174.408167,236.0,235.86,2.4696]
[1732062700024,174.408167,235.97,235.86,2.4696]
[1732062700221,2.3,235.96,235.86,2.4696]
[1732062700420,2.3,235.96,235.88,2.1163]
[1732062700621,174.408167,235.95,235.88,2.1163]
[1732062701026,2.3,235.96,235.88,2.1163]
[1732062701226,2.116,235.93,235.88,2.1163]
[1732062701719,2.3,235.96,235.89,2.1163]
[1732062701932,2.1158,235.95,235.86,2.4696]
[1732062702326,2.1159,235.94,235.89,2.1163]
[1732062702526,176.708167,235.98,235.86,2.4696]
[1732062702830,2.3,235.98,235.88,10.33918257]
[1732062704330,174.408167,236.01,235.93,2.1159]
[1732062704531,232.5442227,236.02,235.94,10.33918257]
[1732062704532,174.408167,236.02,235.94,10.33918257]
[1732062704726,406.9523897,236.04,235.94,10.33918257]
[1732062704929,174.408167,236.04,235.94,10.33918257]
[1732062705125,2.3,236.06,236.0,2.1153]
[1732062705833,176.708167,236.07,236.01,2.1152]
[1732062706624,174.408167,236.07,236.03,2.115]
[1732062706829,174.408167,236.07,235.95,18.82727401]
[1732062707028,174.408167,236.07,235.96,3.625]
[1732062707428,174.408167,236.07,235.99,2.1154]
[1732062707623,174.408167,236.07,235.96,3.625]
[1732062708030,2.3,236.09,235.96,3.625]
[1732062708031,174.408167,236.08,235.96,3.625]
[1732062708328,174.408167,236.08,236.04,2.1149]
[1732062708627,29.53985064,236.09,236.03,16.52727401]
[1732062708832,174.408167,236.12,236.1,2.1144]
[1732062709328,174.408167,236.13,236.1,2.1144]
[1732062709833,174.408167,236.14,236.1,2.1144]
[1732062710426,8.87528596,236.13,236.1,2.1144]
[1732062710624,174.408167,236.15,236.04,2.3]
[1732062710825,8.87651038,236.14,236.04,2.3]
[1732062711030,8.87651038,236.13,236.04,2.3]
[1732062711232,174.408167,236.16,236.04,2.3]
[1732062711533,8.87769337,236.15,236.04,2.3]
[1732062712130,8.87769337,236.14,236.09,2.1144]
[1732062712335,174.408167,236.17,236.09,2.1144]
[1732062712336,8.87769337,236.16,236.09,2.1144]
[1732062712538,8.87769337,236.16,236.04,2.3]
[1732062712835,8.87769337,236.16,236.1,2.1144]
[1732062713137,8.87769337,236.16,236.04,2.3]
[1732062713939,8.87769337,236.16,236.08,2.1146]
[1732062713940,2.114,236.15,236.08,2.1146]
[1732062714329,8.87769337,236.16,236.04,2.3]
[1732062714634,8.87769337,236.16,236.1,2.1144]
[1732062715131,2.1139,236.17,236.1,2.1144]
[1732062715132,8.87769337,236.15,236.1,2.1144]
[1732062715331,8.87769337,236.14,236.1,2.1144]
[1732062715529,174.408167,236.18,236.07,16.52727401]
[1732062715741,8.88142095,236.17,236.04,2.3]
[1732062715932,174.408167,236.12,235.99,16.52727401]
[1732062716238,8.88142095,236.11,235.99,18.82727401]
[1732062716638,183.28958795,236.11,235.99,18.82727401]
[1732062716844,8.88142095,236.1,235.99,18.82727401]
[1732062717446,174.408167,236.11,235.99,18.82727401]
[1732062717937,174.408167,236.11,236.06,2.1148]
[1732062718132,174.408167,236.11,235.99,18.82727401]
[1732062718337,174.408167,236.12,235.99,18.82727401]
[1732062718537,8.88941127,236.11,235.99,18.82727401]
[1732062718739,8.88941127,236.11,236.07,2.1147]
[1732062718935,8.88941127,236.11,235.99,18.82727401]
[1732062719141,8.88941127,236.11,236.03,16.52727401]
[1732062719639,2.3,236.13,236.1,2.1144]
[1732062719640,176.708167,236.13,236.1,2.1144]
[1732062719846,8.89561383,236.12,236.1,2.1144]
[1732062720040,2.3,236.13,236.1,2.1144]
[1732062720242,2.3,236.13,236.03,16.52727401]
[1732062720442,8.89602037,236.12,236.03,16.52727401]
[1732062720638,174.408167,236.14,236.01,2.3]
[1732062720841,8.89666632,236.13,236.08,2.1146]
[1732062721038,8.89666632,236.13,236.01,2.3]
[1732062721336,8.89666632,236.13,236.09,2.1145]
[1732062721638,8.89666632,236.13,236.03,16.52727401]
[1732062722140,174.408167,236.15,236.01,2.3]
[1732062722141,8.89666632,236.12,236.01,2.3]
[1732062722336,264.37254442,236.17,236.01,2.3]
[1732062722337,8.89666632,236.11,236.06,2.1147]
[1732062722537,174.408167,236.13,236.01,2.3]
[1732062722538,8.89666632,236.1,236.01,2.3]
[1732062722737,174.408167,236.13,236.01,2.3]
[1732062723042,183.30344779,236.12,236.08,2.1146]
[1732062723237,8.89528079,236.11,236.08,2.1146]
[1732062723643,174.408167,236.13,236.08,2.1146]
[1732062723843,8.89497175,236.12,236.08,2.1146]
[1732062724244,8.89497175,236.12,236.01,2.3]
[1732062724835,8.89497175,236.11,236.01,2.3]
[1732062725040,35.43301021,236.16,236.01,2.3]
[1732062725246,11.19408996,236.15,236.03,16.52727401]
[1732062725542,8.89408996,236.14,236.03,16.52727401]
[1732062725743,8.89408996,236.14,236.08,2.1146]
[1732062726136,8.89408996,236.14,236.03,16.52727401]
[1732062726342,8.89408996,236.14,236.1,2.1144]
[1732062726544,8.89408996,236.14,236.03,16.52727401]
[1732062726746,8.89408996,236.13,236.03,16.52727401]
[1732062727044,4.3738,236.17,236.11,2.1143]
[1732062727242,8.89428215,236.16,236.11,2.1143]
[1732062728847,8.89428215,236.16,236.07,10.32189683]
[1732062729045,8.89428215,236.16,236.1,10.32189683]
[1732062729239,174.408167,236.19,236.1,10.32189683]
[1732062729446,8.89185785,236.18,236.1,10.32189683]
[1732062730744,8.89185785,236.18,236.08,1.2874]
[1732062731048,8.89185785,236.18,236.06,1.2773]
[1732062731049,10.32189683,236.17,236.06,1.2773]
[1732062731245,2.114,236.15,236.09,2.1145]
[1732062731448,8.89185785,236.15,236.06,1.2773]
[1732062731640,2.26,236.14,236.04,10.32189683]
[1732062731945,8.89185785,236.13,236.04,10.32189683]
[1732062732150,8.89185785,236.13,236.01,12.58189683]
[1732062732547,2.26,236.14,236.04,10.32189683]
[1732062732947,2.26,236.14,236.07,2.1147]
[1732062733149,2.26,236.14,236.04,10.32189683]
[1732062735050,12.58189683,236.14,236.01,12.58189683]
[1732062735252,8.89353794,236.13,236.01,12.58189683]
[1732062735446,2.1142,236.12,236.05,2.1148]
[1732062735953,2.1142,236.12,236.06,2.1148]
[1732062737250,8.89353794,236.13,236.07,2.1147]
[1732062737453,8.89353794,236.13,236.07,10.32189683]
[1732062737753,174.408167,236.19,236.07,10.32189683]
[1732062737754,2.26,236.17,236.07,10.32189683]
[1732062738052,8.89762487,236.16,236.07,10.32189683]
[1732062738353,11.01152487,236.16,236.04,10.32189683]
[1732062739354,11.01152487,236.16,236.07,2.1146]
[1732062739546,11.01152487,236.16,236.04,10.32189683]
[1732062739851,174.408167,236.15,236.04,10.32189683]
[1732062740048,8.89762487,236.14,236.09,2.1144]
[1732062740952,8.89762487,236.14,236.07,2.1147]
[1732062741458,183.30579187,236.14,236.07,2.1147]
[1732062741659,8.89762487,236.13,236.07,2.1147]
[1732062741854,8.89762487,236.13,236.05,2.1148]
[1732062741855,2.1143,236.12,236.05,2.1148]
[1732062742247,11.01192487,236.12,236.02,1.2488]
[1732062742453,8.89762487,236.11,236.02,1.2488]
[1732062742651,174.408167,236.11,236.02,1.2488]
[1732062743256,2.1143,236.12,236.02,1.2488]
[1732062743257,176.522467,236.12,236.02,1.2488]
[1732062743557,8.89897107,236.11,236.01,12.58189683]
[1732062743756,183.30713807,236.11,236.01,12.58189683]
[1732062743955,176.668167,236.11,236.01,12.58189683]
[1732062744156,176.668167,236.11,236.06,2.1148]
[1732062745565,2.26,236.11,236.04,10.32189683]
[1732062745966,174.408167,236.1,236.04,10.32189683]
[1732062746658,8.91111003,236.09,236.04,10.32189683]
[1732062747161,8.91111003,236.09,236.08,2.1146]
[1732062747965,8.91111003,236.09,236.02,1.182]
[1732062748165,8.91111003,236.09,236.05,2.1148]
[1732062748469,8.91111003,236.09,236.02,1.182]
[1732062748669,8.91111003,236.09,236.04,10.32189683]
[1732062748969,183.31927703,236.09,236.04,10.32189683]
[1732062749168,8.91111003,236.08,236.04,10.32189683]
[1732062749464,8.91111003,236.08,236.06,2.1148]
[1732062751466,174.408167,236.09,236.06,2.1148]
[1732062752166,8.94510077,236.08,236.06,2.1148]
[1732062752367,8.94510077,236.08,236.04,2.1149]
[1732062752567,8.94510077,236.08,236.01,12.58189683]
[1732062752769,8.94510077,236.08,236.05,2.1148]
[1732062752969,8.94510077,236.08,236.04,10.32189683]
[1732062754372,8.94510077,236.11,236.06,2.1148]
[1732062754573,8.94510077,236.07,236.06,2.1148]
[1732062754765,8.94510077,236.1,236.06,2.1148]
[1732062755077,8.94510077,236.09,236.04,10.32189683]
[1732062755274,8.94510077,236.08,236.04,10.32189683]
[1732062755473,174.408167,236.12,236.04,10.32189683]
[1732062755670,8.94826728,236.11,236.04,10.32189683]
[1732062755974,8.94826728,236.11,236.07,2.1146]
[1732062756179,8.94826728,236.1,236.07,2.1146]
[1732062756373,8.94826728,236.09,236.04,10.32189683]
[1732062756572,8.94826728,236.08,236.07,2.1146]
[1732062756869,8.94826728,236.11,236.07,2.1146]
[1732062758367,8.94826728,236.11,236.04,10.32189683]
[1732062758569,8.94826728,236.11,236.06,2.1148]
[1732062759369,8.94826728,236.11,236.01,12.58189683]
[1732062759575,2.1144,236.1,236.04,2.1149]
[1732062760071,8.94826728,236.11,236.05,2.1148]
[1732062760467,183.35643428,236.11,236.05,2.1148]
[1732062760665,8.94826728,236.1,236.05,2.1148]
[1732062760871,8.94826728,236.1,235.93,1.2588]
[1732062760872,10.32189683,236.06,235.87,2.24]
[1732062761073,18.94807941,236.05,235.95,10.32189683]
[1732062761277,8.94826728,236.04,235.95,10.32189683]
[1732062761674,8.94826728,236.03,235.97,2.1155]
[1732062761874,8.94826728,236.02,235.95,10.32189683]
[1732062762074,8.94826728,236.01,235.95,10.32189683]
[1732062762273,2.1149,236.05,235.95,10.32189683]
[1732062762575,21.04727709,236.05,235.95,10.32189683]